[Event "Titled Tuesday Blitz April 26 Early 2022"]
[White "Aggelis, Nikolaos"]
[Black "Bas Mas, Jose Joaquin"]
[WhiteFideId "4213220"]
[BlackFideId "22219064"]
[WhiteElo "2154"]
[BlackElo "2212"]
[Result "0-1"]
[Round "07"]
[TimeControl "180+1"]
[Date "2022.04.26"]
[WhiteClock "0:02:41"]
[BlackClock "0:02:00"]

1. d4 {[%clk 0:03:00]}  f5 {[%clk 0:02:59]} 2. g3 {[%clk 0:03:01]}  Nf6 {[%clk 0:02:59]} 3. c3 {[%clk 0:03:00]}  e6 {[%clk 0:02:57]} 4. Bg2 {[%clk 0:02:55]}  Be7 {[%clk 0:02:57]} 5. Nf3 {[%clk 0:02:55]}  O-O {[%clk 0:02:56]} 6. O-O {[%clk 0:02:56]}  d6 {[%clk 0:02:56]} 7. Nfd2 {[%clk 0:02:50]}  e5 {[%clk 0:02:47]} 8. e4 {[%clk 0:02:50]}  fxe4 {[%clk 0:02:42]} 9. Nxe4 {[%clk 0:02:49]}  exd4 {[%clk 0:02:39]} 10. Qxd4 {[%clk 0:02:49]}  Nc6 {[%clk 0:02:38]} 11. Nxf6+ {[%clk 0:02:47]}  Bxf6 {[%clk 0:02:37]} 12. Qd5+ {[%clk 0:02:47]}  Kh8 {[%clk 0:02:35]} 13. Be3 {[%clk 0:02:46]}  Ne7 {[%clk 0:02:29]} 14. Qb5 {[%clk 0:02:42]}  c6 {[%clk 0:02:28]} 15. Qb3 {[%clk 0:02:42]}  d5 {[%clk 0:02:26]} 16. Nd2 {[%clk 0:02:42]}  Nf5 {[%clk 0:02:26]} 17. Bc5 {[%clk 0:02:42]}  Re8 {[%clk 0:02:25]} 18. Nf3 {[%clk 0:02:42]}  b6 {[%clk 0:02:22]} 19. Bd4 {[%clk 0:02:42]}  Nxd4 {[%clk 0:02:18]} 20. Nxd4 {[%clk 0:02:43]}  Bxd4 {[%clk 0:02:17]} 21. cxd4 {[%clk 0:02:43]}  Ba6 {[%clk 0:02:18]} 22. Rfe1 {[%clk 0:02:42]}  Bc4 {[%clk 0:02:10]} 23. Qc2 {[%clk 0:02:42]}  Qf6 {[%clk 0:02:05]} 24. b3 {[%clk 0:02:41]}  Bb5 {[%clk 0:02:01]} 25. a4 {[%clk 0:02:41]}  Ba6 {[%clk 0:02:01]} 26. Qxc6 {[%clk 0:02:41]}  Qxc6 {[%clk 0:02:00]} 0-1


[Site "https://www.chess.com"]

[Event "Titled Tuesday Blitz April 26 Early 2022"]
[White "Begunov, Konstantin"]
[Black "Clawitter, Craig"]
[WhiteFideId "4118510"]
[BlackFideId "2023105"]
[WhiteElo "2262"]
[BlackElo "2250"]
[Result "1-0"]
[Round "07"]
[TimeControl "180+1"]
[Date "2022.04.26"]
[WhiteClock "0:00:30"]
[BlackClock "0:00:03"]

1. d4 {[%clk 0:02:54]}  e6 {[%clk 0:03:00]} 2. c4 {[%clk 0:02:53]}  Nf6 {[%clk 0:03:00]} 3. Nf3 {[%clk 0:02:52]}  d5 {[%clk 0:03:01]} 4. Nc3 {[%clk 0:02:52]}  dxc4 {[%clk 0:03:00]} 5. e4 {[%clk 0:02:52]}  Bb4 {[%clk 0:02:57]} 6. e5 {[%clk 0:02:46]}  Nd5 {[%clk 0:02:55]} 7. Bd2 {[%clk 0:02:46]}  c5 {[%clk 0:02:46]} 8. Bxc4 {[%clk 0:02:34]}  cxd4 {[%clk 0:02:33]} 9. Nxd5 {[%clk 0:02:26]}  Bxd2+ {[%clk 0:02:32]} 10. Qxd2 {[%clk 0:02:26]}  exd5 {[%clk 0:02:32]} 11. Bb3 {[%clk 0:02:07]}  Nc6 {[%clk 0:02:26]} 12. O-O {[%clk 0:02:07]}  O-O {[%clk 0:02:25]} 13. Rfe1 {[%clk 0:02:05]}  Re8 {[%clk 0:02:15]} 14. Qf4 {[%clk 0:02:05]}  Na5 {[%clk 0:01:30]} 15. Bc2 {[%clk 0:01:58]}  h6 {[%clk 0:01:19]} 16. Nxd4 {[%clk 0:01:50]}  Qb6 {[%clk 0:01:10]} 17. b3 {[%clk 0:01:29]}  Nc6 {[%clk 0:00:35]} 18. Nf5 {[%clk 0:01:25]}  Bxf5 {[%clk 0:00:35]} 19. Qxf5 {[%clk 0:01:25]}  Nd4 {[%clk 0:00:25]} 20. Qh7+ {[%clk 0:01:24]}  Kf8 {[%clk 0:00:25]} 21. Bd3 {[%clk 0:01:14]}  Rac8 {[%clk 0:00:15]} 22. Re3 {[%clk 0:01:02]}  Nc2 {[%clk 0:00:11]} 23. Bxc2 {[%clk 0:00:57]}  Rxc2 {[%clk 0:00:10]} 24. Qh8+ {[%clk 0:00:57]}  Ke7 {[%clk 0:00:10]} 25. Qxg7 {[%clk 0:00:58]}  Rec8 {[%clk 0:00:07]} 26. Rae1 {[%clk 0:00:43]}  Rc1 {[%clk 0:00:05]} 27. e6 {[%clk 0:00:30]}  Rxe1+ {[%clk 0:00:03]} 28. Rxe1 {[%clk 0:00:30]} 1-0


[Site "https://www.chess.com"]

[Event "Titled Tuesday Blitz April 26 Early 2022"]
[White "Blokhin, Sofia"]
[Black "Andrews, Todd"]
[WhiteFideId "4508190"]
[BlackFideId "2012456"]
[WhiteElo "1764"]
[BlackElo "2336"]
[Result "0-1"]
[Round "07"]
[TimeControl "180+1"]
[Date "2022.04.26"]
[WhiteClock "0:00:48"]
[BlackClock "0:01:43"]

1. d4 {[%clk 0:03:00]}  Nf6 {[%clk 0:02:59]} 2. c4 {[%clk 0:02:59]}  c5 {[%clk 0:02:58]} 3. d5 {[%clk 0:02:58]}  b5 {[%clk 0:02:59]} 4. cxb5 {[%clk 0:02:57]}  a6 {[%clk 0:02:59]} 5. bxa6 {[%clk 0:02:56]}  g6 {[%clk 0:02:59]} 6. Nc3 {[%clk 0:02:54]}  Bxa6 {[%clk 0:02:58]} 7. e4 {[%clk 0:02:50]}  Bxf1 {[%clk 0:02:59]} 8. Kxf1 {[%clk 0:02:51]}  d6 {[%clk 0:02:58]} 9. Nf3 {[%clk 0:02:48]}  Bg7 {[%clk 0:02:59]} 10. g3 {[%clk 0:02:45]}  O-O {[%clk 0:02:58]} 11. Kg2 {[%clk 0:02:46]}  Qb6 {[%clk 0:02:55]} 12. b3 {[%clk 0:02:44]}  Qb7 {[%clk 0:02:55]} 13. Bd2 {[%clk 0:02:19]}  e6 {[%clk 0:02:51]} 14. dxe6 {[%clk 0:02:16]}  fxe6 {[%clk 0:02:50]} 15. Qc2 {[%clk 0:02:07]}  Nc6 {[%clk 0:02:45]} 16. Bf4 {[%clk 0:02:01]}  d5 {[%clk 0:02:38]} 17. exd5 {[%clk 0:01:53]}  exd5 {[%clk 0:02:38]} 18. Bd6 {[%clk 0:01:51]}  Nb4 {[%clk 0:02:28]} 19. Qd2 {[%clk 0:01:41]}  d4 {[%clk 0:02:23]} 20. Na4 {[%clk 0:01:30]}  Ng4 {[%clk 0:02:12]} 21. Bf4 {[%clk 0:01:19]}  Ne5 {[%clk 0:02:00]} 22. Qe2 {[%clk 0:01:10]}  d3 {[%clk 0:01:58]} 23. Qd1 {[%clk 0:01:03]}  Nxf3 {[%clk 0:01:53]} 24. Qxf3 {[%clk 0:01:02]}  Qxf3+ {[%clk 0:01:52]} 25. Kxf3 {[%clk 0:01:02]}  Bxa1 {[%clk 0:01:52]} 26. Rxa1 {[%clk 0:00:59]}  g5 {[%clk 0:01:52]} 27. Nxc5 {[%clk 0:00:59]}  gxf4 {[%clk 0:01:50]} 28. gxf4 {[%clk 0:00:58]}  Rxa2 {[%clk 0:01:50]} 29. Rxa2 {[%clk 0:00:52]}  Nxa2 {[%clk 0:01:49]} 30. Nxd3 {[%clk 0:00:53]}  Rb8 {[%clk 0:01:48]} 31. Nc5 {[%clk 0:00:51]}  Nc1 {[%clk 0:01:46]} 32. Ke4 {[%clk 0:00:49]}  Nxb3 {[%clk 0:01:45]} 33. Nxb3 {[%clk 0:00:48]}  Rxb3 {[%clk 0:01:43]} 0-1


[Site "https://www.chess.com"]

[Event "Titled Tuesday Blitz April 26 Early 2022"]
[White "Brodowski, Piotr"]
[Black "Sargissyan, Sargis"]
[WhiteFideId "1124480"]
[BlackFideId "13303210"]
[WhiteElo "2422"]
[BlackElo "2174"]
[Result "0-1"]
[Round "07"]
[TimeControl "180+1"]
[Date "2022.04.26"]
[WhiteClock "0:00:01"]
[BlackClock "0:00:56"]

1. e4 {[%clk 0:01:05]}  c5 {[%clk 0:02:57]} 2. Nf3 {[%clk 0:01:02]}  d6 {[%clk 0:02:57]} 3. d4 {[%clk 0:01:02]}  cxd4 {[%clk 0:02:58]} 4. Nxd4 {[%clk 0:01:02]}  Nf6 {[%clk 0:02:58]} 5. Nc3 {[%clk 0:01:02]}  a6 {[%clk 0:02:59]} 6. a3 {[%clk 0:01:02]}  e6 {[%clk 0:02:53]} 7. g4 {[%clk 0:01:01]}  b5 {[%clk 0:02:34]} 8. g5 {[%clk 0:00:59]}  Nfd7 {[%clk 0:02:34]} 9. Bg2 {[%clk 0:00:59]}  Bb7 {[%clk 0:02:29]} 10. f4 {[%clk 0:00:58]}  Nc5 {[%clk 0:02:25]} 11. Be3 {[%clk 0:00:44]}  Qc7 {[%clk 0:02:23]} 12. Qd2 {[%clk 0:00:33]}  Nbd7 {[%clk 0:02:20]} 13. O-O-O {[%clk 0:00:26]}  Nb6 {[%clk 0:02:19]} 14. Kb1 {[%clk 0:00:26]}  Nc4 {[%clk 0:02:17]} 15. Qe2 {[%clk 0:00:26]}  Be7 {[%clk 0:01:42]} 16. Ndxb5 {[%clk 0:00:25]}  axb5 {[%clk 0:01:36]} 17. Nxb5 {[%clk 0:00:26]}  Nxa3+ {[%clk 0:01:32]} 18. Nxa3 {[%clk 0:00:23]}  Nxe4 {[%clk 0:01:24]} 19. Qb5+ {[%clk 0:00:06]}  Bc6 {[%clk 0:01:02]} 20. Bxe4 {[%clk 0:00:06]}  Bxb5 {[%clk 0:01:03]} 21. Nxb5 {[%clk 0:00:07]}  Qa5 {[%clk 0:00:59]} 22. Bxa8 {[%clk 0:00:05]}  Qxb5 {[%clk 0:00:57]} 23. Be4 {[%clk 0:00:03]}  O-O {[%clk 0:00:56]} 24. c3 {[%clk 0:00:01]}  Rb8 {[%clk 0:00:56]} 25. Rd2 {[%clk 0:00:01]}  d5 {[%clk 0:00:56]} 0-1


[Site "https://www.chess.com"]

[Event "Titled Tuesday Blitz April 26 Early 2022"]
[White "Buscar, Michael"]
[Black "De Arruda, Leandro Formes"]
[WhiteFideId "2603616"]
[BlackFideId "22722009"]
[WhiteElo "2010"]
[BlackElo "1852"]
[Result "1-0"]
[Round "07"]
[TimeControl "180+1"]
[Date "2022.04.26"]
[WhiteClock "0:00:08"]
[BlackClock "0:00:04"]

1. Nf3 {[%clk 0:02:59]}  d5 {[%clk 0:03:00]} 2. g3 {[%clk 0:02:59]}  g6 {[%clk 0:03:00]} 3. Bg2 {[%clk 0:03:00]}  Bg7 {[%clk 0:03:01]} 4. c4 {[%clk 0:03:00]}  c6 {[%clk 0:03:00]} 5. O-O {[%clk 0:03:00]}  Nf6 {[%clk 0:02:59]} 6. cxd5 {[%clk 0:02:59]}  cxd5 {[%clk 0:03:00]} 7. d3 {[%clk 0:02:58]}  O-O {[%clk 0:03:01]} 8. Bg5 {[%clk 0:02:55]}  h6 {[%clk 0:03:00]} 9. Be3 {[%clk 0:02:54]}  Nc6 {[%clk 0:02:58]} 10. Qd2 {[%clk 0:02:48]}  Ng4 {[%clk 0:02:56]} 11. Bc5 {[%clk 0:02:41]}  b6 {[%clk 0:02:50]} 12. Ba3 {[%clk 0:02:41]}  Bb7 {[%clk 0:02:38]} 13. Nc3 {[%clk 0:02:40]}  e5 {[%clk 0:02:34]} 14. Bxf8 {[%clk 0:02:29]}  Bxf8 {[%clk 0:02:35]} 15. Rfc1 {[%clk 0:02:22]}  Bb4 {[%clk 0:02:20]} 16. a3 {[%clk 0:02:17]}  Bc5 {[%clk 0:02:13]} 17. e3 {[%clk 0:02:11]}  Na5 {[%clk 0:01:58]} 18. b4 {[%clk 0:02:00]}  Nb3 {[%clk 0:01:57]} 19. Qb2 {[%clk 0:02:01]}  Nxc1 {[%clk 0:01:56]} 20. Rxc1 {[%clk 0:01:56]}  Bd6 {[%clk 0:01:47]} 21. Nb5 {[%clk 0:01:56]}  e4 {[%clk 0:00:58]} 22. Nxd6 {[%clk 0:01:35]}  Qxd6 {[%clk 0:00:46]} 23. dxe4 {[%clk 0:01:36]}  dxe4 {[%clk 0:00:43]} 24. Nd4 {[%clk 0:01:36]}  Qf6 {[%clk 0:00:35]} 25. Qe2 {[%clk 0:01:32]}  h5 {[%clk 0:00:30]} 26. Rc7 {[%clk 0:01:29]}  Rb8 {[%clk 0:00:26]} 27. b5 {[%clk 0:01:11]}  Ne5 {[%clk 0:00:25]} 28. a4 {[%clk 0:00:59]}  Qd6 {[%clk 0:00:24]} 29. Qc2 {[%clk 0:00:52]}  Nf3+ {[%clk 0:00:14]} 30. Bxf3 {[%clk 0:00:46]}  exf3 {[%clk 0:00:15]} 31. Rxb7 {[%clk 0:00:46]}  Rd8 {[%clk 0:00:07]} 32. Qc7 {[%clk 0:00:40]}  Qd5 {[%clk 0:00:07]} 33. Rxa7 {[%clk 0:00:28]}  h4 {[%clk 0:00:07]} 34. Qf4 {[%clk 0:00:19]}  h3 {[%clk 0:00:05]} 35. Rc7 {[%clk 0:00:09]}  Qa2 {[%clk 0:00:04]} 36. Rc1 {[%clk 0:00:08]} 1-0


[Site "https://www.chess.com"]

[Event "Titled Tuesday Blitz April 26 Early 2022"]
[White "Cagara, Paulina"]
[Black "Odegov, Artem"]
[WhiteFideId "1124870"]
[BlackFideId "34183644"]
[WhiteElo "1780"]
[BlackElo "2286"]
[Result "0-1"]
[Round "07"]
[TimeControl "180+1"]
[Date "2022.04.26"]
[WhiteClock "0:00:18"]
[BlackClock "0:00:07"]

1. e4 {[%clk 0:03:00]}  e6 {[%clk 0:02:56]} 2. d4 {[%clk 0:03:00]}  d5 {[%clk 0:02:56]} 3. Nc3 {[%clk 0:03:00]}  Bb4 {[%clk 0:02:55]} 4. exd5 {[%clk 0:03:00]}  exd5 {[%clk 0:02:56]} 5. Bd3 {[%clk 0:03:00]}  Nf6 {[%clk 0:02:55]} 6. Bg5 {[%clk 0:02:59]}  O-O {[%clk 0:02:54]} 7. Ne2 {[%clk 0:02:59]}  h6 {[%clk 0:02:53]} 8. Bh4 {[%clk 0:02:58]}  Bg4 {[%clk 0:02:52]} 9. f3 {[%clk 0:02:58]}  Bh5 {[%clk 0:02:52]} 10. O-O {[%clk 0:02:56]}  c6 {[%clk 0:02:52]} 11. Nf4 {[%clk 0:02:53]}  Qc7 {[%clk 0:02:43]} 12. Nxh5 {[%clk 0:02:48]}  Nxh5 {[%clk 0:02:44]} 13. f4 {[%clk 0:02:39]}  Nxf4 {[%clk 0:02:35]} 14. Bg3 {[%clk 0:02:30]}  Bd6 {[%clk 0:02:32]} 15. Bxf4 {[%clk 0:02:24]}  Bxf4 {[%clk 0:02:33]} 16. g3 {[%clk 0:02:18]}  Bd6 {[%clk 0:02:29]} 17. Qg4 {[%clk 0:02:17]}  Nd7 {[%clk 0:02:27]} 18. Rf2 {[%clk 0:02:06]}  Rae8 {[%clk 0:02:24]} 19. Raf1 {[%clk 0:02:06]}  Re7 {[%clk 0:02:11]} 20. Qf5 {[%clk 0:01:53]}  g6 {[%clk 0:02:06]} 21. Qh3 {[%clk 0:01:52]}  Kg7 {[%clk 0:01:51]} 22. Ne2 {[%clk 0:01:49]}  Rfe8 {[%clk 0:01:48]} 23. c4 {[%clk 0:01:38]}  dxc4 {[%clk 0:01:34]} 24. Bxc4 {[%clk 0:01:37]}  f5 {[%clk 0:01:35]} 25. g4 {[%clk 0:01:29]}  Re3 {[%clk 0:01:20]} 26. Qg2 {[%clk 0:01:24]}  Nf6 {[%clk 0:00:42]} 27. gxf5 {[%clk 0:01:23]}  g5 {[%clk 0:00:40]} 28. Be6 {[%clk 0:01:16]}  Kh7 {[%clk 0:00:19]} 29. Rf3 {[%clk 0:01:05]}  Bxh2+ {[%clk 0:00:19]} 30. Kh1 {[%clk 0:00:55]}  Rxf3 {[%clk 0:00:17]} 31. Rxf3 {[%clk 0:00:54]}  Bd6 {[%clk 0:00:17]} 32. Rh3 {[%clk 0:00:49]}  Kg7 {[%clk 0:00:11]} 33. Rh2 {[%clk 0:00:42]}  Bxh2 {[%clk 0:00:10]} 34. Qxh2 {[%clk 0:00:42]}  Qxh2+ {[%clk 0:00:11]} 35. Kxh2 {[%clk 0:00:43]}  Nd5 {[%clk 0:00:08]} 36. Ng3 {[%clk 0:00:42]}  Nf4 {[%clk 0:00:08]} 37. Bd7 {[%clk 0:00:39]}  Rd8 {[%clk 0:00:06]} 38. f6+ {[%clk 0:00:35]}  Kxf6 {[%clk 0:00:05]} 39. Ne4+ {[%clk 0:00:33]}  Ke7 {[%clk 0:00:05]} 40. Bf5 {[%clk 0:00:31]}  Rxd4 {[%clk 0:00:06]} 41. Kg3 {[%clk 0:00:30]}  Rd5 {[%clk 0:00:04]} 42. Bh7 {[%clk 0:00:28]}  Rd3+ {[%clk 0:00:04]} 43. Kf2 {[%clk 0:00:28]}  Re3 {[%clk 0:00:05]} 44. Nc5 {[%clk 0:00:25]}  Re2+ {[%clk 0:00:05]} 45. Kf1 {[%clk 0:00:25]}  Rxb2 {[%clk 0:00:06]} 46. a4 {[%clk 0:00:21]}  h5 {[%clk 0:00:04]} 47. a5 {[%clk 0:00:20]}  h4 {[%clk 0:00:05]} 48. Ne4 {[%clk 0:00:20]}  h3 {[%clk 0:00:05]} 49. Nxg5 {[%clk 0:00:20]}  h2 {[%clk 0:00:05]} 50. Be4 {[%clk 0:00:20]}  Rb1+ {[%clk 0:00:05]} 51. Kf2 {[%clk 0:00:20]}  h1=Q {[%clk 0:00:06]} 52. Bxh1 {[%clk 0:00:20]}  Rxh1 {[%clk 0:00:07]} 53. Ne4 {[%clk 0:00:19]}  Nd3+ {[%clk 0:00:06]} 54. Ke3 {[%clk 0:00:19]}  Nb4 {[%clk 0:00:07]} 55. Kd4 {[%clk 0:00:19]}  Rh4 {[%clk 0:00:07]} 56. Kc5 {[%clk 0:00:18]}  Rxe4 {[%clk 0:00:06]} 57. a6 {[%clk 0:00:18]}  Nxa6# {[%clk 0:00:07]} 0-1


[Site "https://www.chess.com"]

[Event "Titled Tuesday Blitz April 26 Early 2022"]
[White "Chigaev, Maksim"]
[Black "Ning, Kaiyu"]
[WhiteFideId "4108116"]
[BlackFideId "8614750"]
[WhiteElo "2478"]
[BlackElo "2013"]
[Result "1-0"]
[Round "07"]
[TimeControl "180+1"]
[Date "2022.04.26"]
[WhiteClock "0:00:38"]
[BlackClock "0:00:02"]

1. d4 {[%clk 0:03:00]}  Nf6 {[%clk 0:02:59]} 2. c4 {[%clk 0:03:01]}  e6 {[%clk 0:03:00]} 3. Nf3 {[%clk 0:03:01]}  d5 {[%clk 0:03:00]} 4. g3 {[%clk 0:03:02]}  Be7 {[%clk 0:02:58]} 5. Bg2 {[%clk 0:03:02]}  O-O {[%clk 0:02:59]} 6. Qb3 {[%clk 0:03:00]}  a6 {[%clk 0:02:52]} 7. cxd5 {[%clk 0:02:47]}  exd5 {[%clk 0:02:48]} 8. O-O {[%clk 0:02:47]}  c6 {[%clk 0:02:44]} 9. Nc3 {[%clk 0:02:45]}  Re8 {[%clk 0:02:35]} 10. Bf4 {[%clk 0:02:41]}  Nbd7 {[%clk 0:02:35]} 11. Rad1 {[%clk 0:02:40]}  Nf8 {[%clk 0:02:32]} 12. Rfe1 {[%clk 0:02:39]}  Ne6 {[%clk 0:02:26]} 13. Be5 {[%clk 0:02:31]}  Nd7 {[%clk 0:02:23]} 14. e4 {[%clk 0:02:31]}  dxe4 {[%clk 0:02:16]} 15. Nxe4 {[%clk 0:02:31]}  Nxe5 {[%clk 0:02:11]} 16. dxe5 {[%clk 0:02:26]}  Qc7 {[%clk 0:02:11]} 17. Nd6 {[%clk 0:02:19]}  Rd8 {[%clk 0:02:10]} 18. Nxc8 {[%clk 0:02:00]}  Raxc8 {[%clk 0:02:10]} 19. Bh3 {[%clk 0:02:00]}  Nc5 {[%clk 0:02:02]} 20. Qc4 {[%clk 0:01:56]}  Rxd1 {[%clk 0:02:00]} 21. Rxd1 {[%clk 0:01:56]}  Rd8 {[%clk 0:02:01]} 22. Rd4 {[%clk 0:01:47]}  Rxd4 {[%clk 0:01:47]} 23. Qxd4 {[%clk 0:01:48]}  Qd8 {[%clk 0:01:47]} 24. Qxd8+ {[%clk 0:01:27]}  Bxd8 {[%clk 0:01:47]} 25. Kf1 {[%clk 0:01:28]}  Nd3 {[%clk 0:01:37]} 26. Bc8 {[%clk 0:01:17]}  b6 {[%clk 0:01:37]} 27. Bxa6 {[%clk 0:01:15]}  Nxb2 {[%clk 0:01:37]} 28. Nd4 {[%clk 0:01:15]}  c5 {[%clk 0:01:31]} 29. Nc6 {[%clk 0:01:15]}  Bc7 {[%clk 0:01:32]} 30. Ke2 {[%clk 0:01:12]}  Kf8 {[%clk 0:01:07]} 31. Kd2 {[%clk 0:01:06]}  c4 {[%clk 0:00:49]} 32. f4 {[%clk 0:01:06]}  f6 {[%clk 0:00:38]} 33. exf6 {[%clk 0:01:00]}  gxf6 {[%clk 0:00:39]} 34. Kc3 {[%clk 0:00:55]}  Nd1+ {[%clk 0:00:36]} 35. Kxc4 {[%clk 0:00:54]}  Ne3+ {[%clk 0:00:34]} 36. Kd4 {[%clk 0:00:54]}  Nc2+ {[%clk 0:00:25]} 37. Kd5 {[%clk 0:00:50]}  h5 {[%clk 0:00:23]} 38. Ke6 {[%clk 0:00:46]}  b5 {[%clk 0:00:08]} 39. Bxb5 {[%clk 0:00:46]}  h4 {[%clk 0:00:08]} 40. Kxf6 {[%clk 0:00:42]}  Ne3 {[%clk 0:00:05]} 41. Kg5 {[%clk 0:00:40]}  hxg3 {[%clk 0:00:04]} 42. hxg3 {[%clk 0:00:41]}  Kf7 {[%clk 0:00:04]} 43. a4 {[%clk 0:00:38]}  Nd5 {[%clk 0:00:02]} 44. Bc4 {[%clk 0:00:37]}  Ke6 {[%clk 0:00:02]} 45. Nb4 {[%clk 0:00:38]} 1-0


[Site "https://www.chess.com"]

[Event "Titled Tuesday Blitz April 26 Early 2022"]
[White "Chuemsakul, Sarocha"]
[Black "Eynullayev, Atilla"]
[WhiteFideId "6203710"]
[BlackFideId "13413570"]
[WhiteElo "1703"]
[BlackElo "1936"]
[Result "1/2-1/2"]
[Round "07"]
[TimeControl "180+1"]
[Date "2022.04.26"]
[WhiteClock "0:00:03"]
[BlackClock "0:00:11"]

1. d4 {[%clk 0:03:00]}  Nf6 {[%clk 0:02:59]} 2. c4 {[%clk 0:03:01]}  e6 {[%clk 0:02:59]} 3. Nf3 {[%clk 0:03:01]}  d5 {[%clk 0:02:59]} 4. cxd5 {[%clk 0:03:00]}  exd5 {[%clk 0:02:59]} 5. Nc3 {[%clk 0:03:01]}  h6 {[%clk 0:02:54]} 6. Bf4 {[%clk 0:03:01]}  Bd6 {[%clk 0:02:54]} 7. Bxd6 {[%clk 0:03:01]}  Qxd6 {[%clk 0:02:54]} 8. e3 {[%clk 0:03:02]}  Nbd7 {[%clk 0:02:52]} 9. Bd3 {[%clk 0:03:02]}  c6 {[%clk 0:02:52]} 10. O-O {[%clk 0:03:03]}  O-O {[%clk 0:02:51]} 11. Rb1 {[%clk 0:03:03]}  a5 {[%clk 0:02:50]} 12. Qc2 {[%clk 0:03:00]}  Re8 {[%clk 0:02:49]} 13. h3 {[%clk 0:02:59]}  Nf8 {[%clk 0:02:49]} 14. Ne5 {[%clk 0:02:59]}  N6d7 {[%clk 0:02:28]} 15. Nxd7 {[%clk 0:02:49]}  Bxd7 {[%clk 0:02:28]} 16. Na4 {[%clk 0:02:48]}  Ng6 {[%clk 0:02:20]} 17. Nb6 {[%clk 0:02:45]}  Rad8 {[%clk 0:02:16]} 18. Nxd7 {[%clk 0:01:49]}  Rxd7 {[%clk 0:02:15]} 19. Bxg6 {[%clk 0:01:45]}  fxg6 {[%clk 0:02:16]} 20. Qc3 {[%clk 0:01:42]}  Ra8 {[%clk 0:01:54]} 21. Rfc1 {[%clk 0:01:41]}  g5 {[%clk 0:01:53]} 22. b3 {[%clk 0:01:10]}  Qe6 {[%clk 0:01:52]} 23. Qd3 {[%clk 0:01:09]}  Rf7 {[%clk 0:01:51]} 24. a4 {[%clk 0:01:06]}  Raf8 {[%clk 0:01:51]} 25. Rc2 {[%clk 0:01:04]}  g4 {[%clk 0:01:51]} 26. hxg4 {[%clk 0:00:40]}  Qxg4 {[%clk 0:01:51]} 27. Re1 {[%clk 0:00:39]}  h5 {[%clk 0:01:50]} 28. e4 {[%clk 0:00:37]}  dxe4 {[%clk 0:01:51]} 29. Rxe4 {[%clk 0:00:36]}  Qg5 {[%clk 0:01:45]} 30. Re5 {[%clk 0:00:31]}  Qg4 {[%clk 0:01:44]} 31. Rxa5 {[%clk 0:00:21]}  Rf4 {[%clk 0:01:39]} 32. Rd2 {[%clk 0:00:13]}  Rd8 {[%clk 0:01:29]} 33. d5 {[%clk 0:00:13]}  b6 {[%clk 0:01:21]} 34. Ra7 {[%clk 0:00:08]}  Rxd5 {[%clk 0:01:17]} 35. Ra8+ {[%clk 0:00:07]}  Rf8 {[%clk 0:01:17]} 36. Rxf8+ {[%clk 0:00:08]}  Kxf8 {[%clk 0:01:18]} 37. Qe3 {[%clk 0:00:06]}  Rxd2 {[%clk 0:00:51]} 38. Qxd2 {[%clk 0:00:07]}  Qc8 {[%clk 0:00:34]} 39. Qd6+ {[%clk 0:00:07]}  Kf7 {[%clk 0:00:34]} 40. g3 {[%clk 0:00:07]}  Kg8 {[%clk 0:00:28]} 41. Kg2 {[%clk 0:00:06]}  Kh7 {[%clk 0:00:28]} 42. Qd3+ {[%clk 0:00:06]}  g6 {[%clk 0:00:29]} 43. Qd6 {[%clk 0:00:06]}  Kh6 {[%clk 0:00:25]} 44. b4 {[%clk 0:00:06]}  Qa8 {[%clk 0:00:24]} 45. Qd2+ {[%clk 0:00:04]}  Kh7 {[%clk 0:00:24]} 46. Qd7+ {[%clk 0:00:04]}  Kg8 {[%clk 0:00:24]} 47. Qe6+ {[%clk 0:00:04]}  Kg7 {[%clk 0:00:24]} 48. Qe7+ {[%clk 0:00:04]}  Kh6 {[%clk 0:00:24]} 49. Qe3+ {[%clk 0:00:04]}  Kg7 {[%clk 0:00:22]} 50. Qc3+ {[%clk 0:00:03]}  Kg8 {[%clk 0:00:18]} 51. Qc4+ {[%clk 0:00:03]}  Kg7 {[%clk 0:00:14]} 52. Qd4+ {[%clk 0:00:04]}  Kh6 {[%clk 0:00:13]} 53. Qf4+ {[%clk 0:00:04]}  Kh7 {[%clk 0:00:13]} 54. Qc7+ {[%clk 0:00:04]}  Kh6 {[%clk 0:00:13]} 55. Qf4+ {[%clk 0:00:04]}  Kh7 {[%clk 0:00:13]} 56. Qf7+ {[%clk 0:00:04]}  Kh6 {[%clk 0:00:11]} 57. Qf4+ {[%clk 0:00:03]} 1/2-1/2


[Site "https://www.chess.com"]

[Event "Titled Tuesday Blitz April 26 Early 2022"]
[White "Csonka, Balazs"]
[Black "Bluebaum, Matthias"]
[WhiteFideId "742910"]
[BlackFideId "24651516"]
[WhiteElo "2404"]
[BlackElo "2550"]
[Result "0-1"]
[Round "07"]
[TimeControl "180+1"]
[Date "2022.04.26"]
[WhiteClock "0:00:02"]
[BlackClock "0:00:48"]

1. e4 {[%clk 0:03:00]}  c6 {[%clk 0:02:58]} 2. d4 {[%clk 0:02:52]}  d5 {[%clk 0:02:59]} 3. exd5 {[%clk 0:02:52]}  cxd5 {[%clk 0:03:00]} 4. Bd3 {[%clk 0:02:52]}  Nc6 {[%clk 0:03:00]} 5. c3 {[%clk 0:02:52]}  Qc7 {[%clk 0:03:00]} 6. Ne2 {[%clk 0:02:51]}  Bg4 {[%clk 0:03:00]} 7. O-O {[%clk 0:02:51]}  e6 {[%clk 0:03:00]} 8. Qe1 {[%clk 0:02:50]}  g6 {[%clk 0:02:59]} 9. Nd2 {[%clk 0:02:40]}  Bd6 {[%clk 0:02:52]} 10. h3 {[%clk 0:02:09]}  Bf5 {[%clk 0:02:52]} 11. Bb5 {[%clk 0:02:05]}  a6 {[%clk 0:02:52]} 12. Ba4 {[%clk 0:02:02]}  g5 {[%clk 0:02:42]} 13. f4 {[%clk 0:01:38]}  g4 {[%clk 0:02:39]} 14. hxg4 {[%clk 0:01:28]}  Bxg4 {[%clk 0:02:40]} 15. Nf3 {[%clk 0:01:25]}  f6 {[%clk 0:02:17]} 16. Bc2 {[%clk 0:01:11]}  Nge7 {[%clk 0:02:10]} 17. Qh4 {[%clk 0:01:08]}  h5 {[%clk 0:02:10]} 18. Qxf6 {[%clk 0:01:05]}  O-O-O {[%clk 0:02:11]} 19. Bd3 {[%clk 0:00:50]}  Rdf8 {[%clk 0:02:11]} 20. Qh4 {[%clk 0:00:49]}  Nf5 {[%clk 0:02:07]} 21. Qh2 {[%clk 0:00:39]}  h4 {[%clk 0:02:06]} 22. Ne5 {[%clk 0:00:30]}  Rhg8 {[%clk 0:01:21]} 23. Nxg4 {[%clk 0:00:20]}  Rxg4 {[%clk 0:01:22]} 24. Rf3 {[%clk 0:00:20]}  Rfg8 {[%clk 0:01:22]} 25. Bxf5 {[%clk 0:00:13]}  exf5 {[%clk 0:01:21]} 26. Bd2 {[%clk 0:00:11]}  Qg7 {[%clk 0:01:03]} 27. Rf2 {[%clk 0:00:11]}  Ne7 {[%clk 0:00:59]} 28. Re1 {[%clk 0:00:09]}  Rh8 {[%clk 0:00:55]} 29. Qh3 {[%clk 0:00:08]}  Ng8 {[%clk 0:00:55]} 30. Nc1 {[%clk 0:00:06]}  Nf6 {[%clk 0:00:55]} 31. Nd3 {[%clk 0:00:06]}  Ne4 {[%clk 0:00:56]} 32. Rxe4 {[%clk 0:00:03]}  dxe4 {[%clk 0:00:56]} 33. Ne5 {[%clk 0:00:04]}  Bxe5 {[%clk 0:00:54]} 34. fxe5 {[%clk 0:00:04]}  Rg8 {[%clk 0:00:53]} 35. Rxf5 {[%clk 0:00:03]}  Rxg2+ {[%clk 0:00:53]} 36. Kf1 {[%clk 0:00:03]}  Rg1+ {[%clk 0:00:50]} 37. Ke2 {[%clk 0:00:04]}  Qg2+ {[%clk 0:00:49]} 38. Qxg2 {[%clk 0:00:04]}  R8xg2+ {[%clk 0:00:50]} 39. Ke3 {[%clk 0:00:03]}  h3 {[%clk 0:00:50]} 40. e6 {[%clk 0:00:02]}  Rg3+ {[%clk 0:00:47]} 41. Kxe4 {[%clk 0:00:01]}  h2 {[%clk 0:00:48]} 42. Kd5 {[%clk 0:00:02]}  h1=Q+ {[%clk 0:00:48]} 0-1


[Site "https://www.chess.com"]